bitfinex-derivatives/quotes_BTCF0:USTF0_20241120
["timestamp","ask_amount","ask_price","bid_price","bid_amount"]
[1732062737086,0.3608,92193.0,92182.0,0.10728517]
[1732062737293,0.3608,92193.0,92192.0,0.05415]
[1732062740906,0.3608,92193.0,92183.0,0.054155]
[1732062741205,0.3608,92185.0,92183.0,0.054155]
[1732062741399,0.0318,92184.0,92183.0,0.054155]
[1732062741704,0.14436,92184.0,92183.0,0.054155]
[1732062742008,0.14436,92184.0,92182.0,0.00162719]
[1732062742009,0.054155,92183.0,92182.0,0.00162719]
[1732062743405,0.054157,92180.0,92179.0,0.054158]
[1732062743707,0.05424069,92180.0,92179.0,0.054158]
[1732062746416,8.369e-05,92180.0,92166.0,0.10565798]
[1732062746605,8.369e-05,92180.0,92166.0,0.054165]
[1732062746606,0.054164,92168.0,92166.0,0.054165]
[1732062746803,0.3608,92169.0,92168.0,0.054164]
[1732062746804,0.47448,92169.0,92168.0,0.054164]
[1732062747707,0.11368,92169.0,92168.0,0.054164]
[1732062748113,0.11368,92169.0,92161.0,0.02180802]
[1732062748114,0.054168,92162.0,92161.0,0.00013536]
[1732062748296,0.054168,92162.0,92155.0,0.00162768]
[1732062748297,0.15982598,92162.0,92155.0,0.00162768]
[1732062748496,0.3608,92156.0,92151.0,0.054174]
[1732062748697,0.054173,92153.0,92151.0,0.054174]
[1732062752412,0.25013798,92155.0,92137.0,0.0051]
[1732062752708,0.054178,92145.0,92143.0,0.054179]
[1732062753206,0.3608,92148.0,92135.0,7.714e-05]
[1732062753606,0.054182,92138.0,92135.0,7.714e-05]
[1732062753801,0.054182,92138.0,92136.0,0.054183]
[1732062756199,0.054183,92136.0,92135.0,7.714e-05]
[1732062756914,0.054183,92136.0,92135.0,0.05426114]
[1732062758412,0.054183,92136.0,92135.0,7.714e-05]
[1732062759412,0.740583,92136.0,92135.0,1e-08]
[1732062760514,0.74067677,92136.0,92135.0,1e-08]
[1732062760822,0.05419,92125.0,92124.0,0.0051]
[1732062761007,0.58017798,92125.0,92110.0,0.3608]
[1732062761207,0.10565798,92113.0,92110.0,0.3608]
[1732062761504,0.10565798,92113.0,92100.0,0.1051]
[1732062761505,0.054199,92110.0,92107.0,0.0542]
[1732062762511,0.054199,92110.0,92100.0,0.1]
[1732062762827,0.054199,92110.0,92108.0,0.054199]
[1732062763111,0.47516,92112.0,92111.0,0.054198]
[1732062763302,0.11372,92112.0,92107.0,0.10565798]
[1732062763508,0.11372,92112.0,92111.0,0.054198]
[1732062764118,0.054191,92122.0,92121.0,0.054192]
[1732062764316,0.167951,92122.0,92107.0,0.10565798]
[1732062764618,0.054193,92120.0,92108.0,0.054199]
[1732062764805,0.054193,92120.0,92107.0,0.10565798]
[1732062765116,0.11376,92119.0,92107.0,0.10565798]
[1732062765313,0.11376,92119.0,92118.0,0.054194]
[1732062766816,0.05419,92124.0,92108.0,0.054199]
[1732062767017,0.3608,92125.0,92105.0,0.3608]
[1732062767018,0.3608,92125.0,92124.0,0.05419]
[1732062768217,0.41499,92125.0,92124.0,0.05419]
[1732062776617,0.3608,92125.0,92109.0,0.05238782]
[1732062776926,0.3608,92125.0,92111.0,0.054198]
[1732062776927,0.054198,92112.0,92111.0,0.054198]
[1732062779936,0.11512,92113.0,92111.0,0.054198]
[1732062781130,0.169317,92113.0,92111.0,0.054198]
[1732062782032,0.01924796,92121.0,92111.0,0.3608]
[1732062782217,0.3608,92134.0,92132.0,0.054185]
[1732062782417,0.3608,92134.0,92120.0,0.3608]
[1732062782418,0.10565798,92133.0,92120.0,0.3608]
[1732062782723,0.10565798,92133.0,92127.0,0.054188]
[1732062782724,0.054187,92129.0,92127.0,0.054188]
[1732062783428,0.3608,92134.0,92120.0,0.3608]
[1732062783630,0.3608,92134.0,92133.0,0.054185]
[1732062783844,0.47592,92134.0,92133.0,0.054185]
[1732062784129,9.377e-05,92136.0,92135.0,0.054184]
[1732062789633,9.377e-05,92136.0,92135.0,0.07346365]
[1732062790223,9.377e-05,92136.0,92135.0,0.17912163]
[1732062792841,0.11508,92159.0,92155.0,0.054172]
[1732062793231,0.3909,92156.0,92148.0,0.054176]
[1732062793431,0.054177,92147.0,92143.0,0.3608]
[1732062793641,0.087377,92146.0,92143.0,0.3608]
[1732062793940,0.00014056,92145.0,92143.0,0.414979]
[1732062794144,0.00014056,92145.0,92143.0,0.054179]
[1732062800739,0.3608,92160.0,92159.0,0.05417]
[1732062800941,0.0328,92172.0,92159.0,0.05417]
[1732062800942,0.14788,92172.0,92171.0,0.054162]
[1732062801144,0.16728183,92172.0,92171.0,0.054162]
[1732062801445,0.14788,92172.0,92171.0,0.054162]
[1732062801635,0.14797535,92172.0,92171.0,0.054162]
[1732062801837,0.03289535,92172.0,92171.0,0.054162]
[1732062802341,9.535e-05,92172.0,92171.0,0.054162]
[1732062804749,0.00162799,92175.0,92174.0,0.054161]
[1732062805060,0.00162799,92175.0,92174.0,0.15981898]
[1732062806138,0.00012592,92180.0,92174.0,0.10565798]
[1732062806334,0.00012592,92180.0,92179.0,0.054158]
[1732062810338,0.00012592,92180.0,92179.0,0.07360472]
[1732062819749,0.36092592,92180.0,92179.0,0.054158]
[1732062819956,0.4665839,92180.0,92171.0,0.054162]
[1732062820157,0.0636,92179.0,92171.0,0.054162]
[1732062820562,0.0303,92178.0,92171.0,0.054162]
[1732062820749,0.054161,92174.0,92171.0,0.054162]
[1732062821152,0.054161,92174.0,92170.0,0.3608]
[1732062821352,0.054161,92174.0,92172.0,0.054162]
[1732062821658,0.0303,92178.0,92177.0,0.054159]
[1732062822462,0.0315,92179.0,92177.0,0.054159]
[1732062822662,0.36092592,92180.0,92179.0,0.054158]
[1732062823161,0.00012592,92180.0,92179.0,0.414958]
[1732062823469,0.00012592,92180.0,92179.0,0.054158]
[1732062827153,0.1533251,92180.0,92179.0,0.054158]
[1732062827349,0.00012592,92180.0,92179.0,0.054158]
[1732062827753,0.15332488,92180.0,92179.0,0.054158]
[1732062829164,0.00012592,92180.0,92179.0,0.054158]
[1732062831658,0.0612,92195.0,92194.0,0.054149]
[1732062832657,0.06127692,92195.0,92194.0,0.054149]
[1732062833374,0.05415,92193.0,92187.0,0.054153]
[1732062833568,0.05415,92193.0,92181.0,0.3907]
[1732062833778,0.05415,92193.0,92190.0,0.054151]
[1732062834566,0.05415,92193.0,92191.0,0.054151]
[1732062834773,0.06127692,92195.0,92181.0,0.3907]
[1732062835357,0.054149,92194.0,92189.0,0.054152]
[1732062835868,0.06127692,92195.0,92181.0,0.3907]
[1732062835869,0.054153,92187.0,92185.0,0.054154]
[1732062836074,0.62129415,92186.0,92185.0,0.054154]
[1732062836454,0.36273806,92186.0,92185.0,0.054154]
[1732062837966,0.72353806,92186.0,92185.0,0.054154]
[1732062840469,0.72353806,92186.0,92180.0,0.054156]
[1732062840670,0.054157,92181.0,92180.0,0.054156]
[1732062840969,0.20798895,92181.0,92180.0,0.054156]
[1732062841971,0.15383195,92181.0,92180.0,0.054156]
[1732062842166,0.05034739,92186.0,92175.0,0.04121149]
[1732062842167,0.15383195,92183.0,92175.0,0.04121149]
[1732062842368,0.15383195,92182.0,92181.0,0.15981498]
[1732062842559,0.11568,92190.0,92181.0,0.15981498]
[1732062842764,0.15452579,92189.0,92181.0,0.15981498]
[1732062842976,0.15452579,92188.0,92187.0,0.054153]
[1732062843671,0.51532579,92188.0,92187.0,0.054153]
[1732062844068,0.3608,92188.0,92187.0,0.054153]
[1732062844274,0.47648,92188.0,92187.0,0.054153]
[1732062848882,0.054157,92184.0,92183.0,0.054155]
[1732062849086,0.054157,92180.0,92179.0,0.01925547]
[1732062849267,0.054157,92180.0,92179.0,0.054158]
[1732062851180,0.054163,92170.0,92169.0,0.0051]
[1732062851369,0.054164,92168.0,92167.0,0.054164]
[1732062852679,0.054168,92163.0,92162.0,0.054168]
[1732062852886,0.054168,92161.0,92160.0,0.00013147]
[1732062853176,0.054168,92161.0,92160.0,1.017e-05]
[1732062853584,0.379688,92161.0,92160.0,1.017e-05]
[1732062856375,0.176488,92161.0,92160.0,1.017e-05]
[1732062856976,0.054168,92162.0,92160.0,1.017e-05]
[1732062857178,0.12232,92161.0,92160.0,1.017e-05]
[1732062857680,0.44784,92161.0,92160.0,1.017e-05]
[1732062860788,0.44798009,92161.0,92160.0,1.017e-05]
[1732062861082,0.44798009,92161.0,92150.0,0.0051]
[1732062861083,0.054174,92152.0,92150.0,0.0051]
[1732062861278,0.46645798,92151.0,92137.0,0.0051]
[1732062861472,0.3608,92141.0,92135.0,0.054183]
[1732062861673,0.48312,92141.0,92135.0,0.054183]
[1732062862885,0.5373,92141.0,92135.0,0.054183]
[1732062863181,0.5373,92141.0,92130.0,0.054186]
[1732062863382,0.5373,92141.0,92131.0,0.054186]
[1732062865280,0.5373,92141.0,92126.0,0.0051]
[1732062865281,0.88218652,92141.0,92126.0,0.0051]
[1732062865483,0.054187,92130.0,92127.0,0.054188]
[1732062865681,0.10565798,92132.0,92127.0,0.054188]
[1732062865682,0.054187,92129.0,92127.0,0.054188]
[1732062865986,0.054187,92129.0,92114.0,0.0051]
[1732062865987,0.05419,92124.0,92122.0,0.054191]
[1732062866978,0.12236,92123.0,92122.0,0.054191]
[1732062867878,0.176551,92123.0,92122.0,0.054191]
[1732062869783,0.12236,92123.0,92122.0,0.054191]
[1732062870086,0.00064,92128.0,92127.0,0.054188]
[1732062870284,0.12236,92129.0,92127.0,0.054188]
[1732062870586,0.054182,92139.0,92121.0,0.10565798]
[1732062870587,0.054182,92139.0,92137.0,0.054182]
[1732062870785,0.12236,92138.0,92137.0,0.054182]
[1732062872484,0.176542,92138.0,92137.0,0.054182]
[1732062872885,0.01938759,92142.0,92141.0,0.05418]
[1732062873075,0.12236,92142.0,92141.0,0.05418]
[1732062873271,0.48316,92142.0,92141.0,0.05418]
[1732062874006,0.537339,92142.0,92141.0,0.05418]
[1732062877879,0.537339,92142.0,92127.0,0.0051]
[1732062877880,0.054185,92134.0,92127.0,0.0051]
[1732062878080,0.054185,92133.0,92121.0,0.0329]
[1732062878389,0.3608,92134.0,92133.0,0.054185]
[1732062878788,0.3608,92134.0,92122.0,0.01539569]
[1732062878789,0.054182,92138.0,92137.0,0.054182]
[1732062878981,0.10565798,92140.0,92123.0,0.01539569]
[1732062878982,0.10565798,92140.0,92123.0,0.0051]
[1732062879183,0.12236,92142.0,92141.0,0.05418]
[1732062880084,0.14147789,92142.0,92141.0,0.05418]
[1732062880991,0.14147789,92142.0,92131.0,0.054186]
[1732062881194,0.054185,92132.0,92131.0,0.054186]
[1732062882077,0.3608,92133.0,92121.0,0.038]
[1732062882278,0.3608,92133.0,92132.0,0.054185]
[1732062882491,0.054183,92136.0,92134.0,0.054184]
[1732062882875,0.054183,92136.0,92135.0,0.06959267]
[1732062883280,0.054183,92136.0,92135.0,0.054182]
[1732062883681,0.0331,92141.0,92140.0,0.054181]
[1732062883887,0.0331,92141.0,92126.0,0.0051]
[1732062884096,0.054181,92139.0,92138.0,0.054182]
[1732062886385,0.054181,92139.0,92138.0,0.01539742]
[1732062886896,0.054181,92139.0,92125.0,0.0051]
[1732062886897,0.054184,92135.0,92134.0,0.054184]
[1732062889481,0.054184,92135.0,92134.0,0.06962827]
[1732062889685,0.054184,92135.0,92134.0,0.054184]
[1732062891784,0.054189,92128.0,92127.0,0.054188]
[1732062892999,0.12032,92129.0,92128.0,0.054188]
[1732062893882,0.12032,92129.0,92128.0,0.06992677]
[1732062901705,0.0051,92142.0,92141.0,0.05418]
[1732062901892,0.0197369,92142.0,92141.0,0.05418]
[1732062902093,0.12032,92143.0,92141.0,0.05418]
[1732062902505,0.48112,92143.0,92141.0,0.05418]
[1732062904601,0.48112,92143.0,92142.0,0.01631229]
[1732062904799,0.48112,92143.0,92141.0,0.05418]
[1732062905303,0.535299,92143.0,92141.0,0.05418]
[1732062905504,0.10565798,92142.0,92141.0,0.05418]
[1732062905710,0.22597798,92142.0,92141.0,0.07044259]
[1732062906005,0.22597798,92142.0,92128.0,0.25967932]
[1732062906217,0.15984298,92133.0,92131.0,0.054186]
[1732062906510,0.15984298,92133.0,92120.0,0.3958]
[1732062906511,0.054188,92128.0,92126.0,0.054189]
[1732062906704,0.0312,92132.0,92120.0,0.054192]
[1732062906705,0.054192,92122.0,92120.0,0.054192]
[1732062906917,0.054192,92122.0,92121.0,0.01621676]
[1732062907111,0.10565798,92122.0,92121.0,0.01621676]
[1732062907413,0.15984998,92122.0,92121.0,0.01621676]
[1732062908103,0.15994742,92122.0,92121.0,0.01621676]
[1732062908906,0.10575542,92122.0,92116.0,9.571e-05]
[1732062909205,0.054194,92117.0,92116.0,9.571e-05]
[1732062911713,0.01990814,92122.0,92121.0,0.054192]
[1732062912016,0.14130814,92122.0,92121.0,0.054192]
[1732062912202,0.14130814,92122.0,92116.0,9.571e-05]
[1732062912406,0.054194,92118.0,92116.0,9.571e-05]
[1732062913014,0.3608,92117.0,92116.0,9.571e-05]
[1732062913909,0.3608,92117.0,92116.0,7.7e-06]
[1732062915511,0.46645798,92117.0,92116.0,7.7e-06]
[1732062919534,0.79213798,92117.0,92116.0,7.7e-06]
[1732062919714,0.94498709,92117.0,92116.0,7.7e-06]
[1732062919914,0.79213798,92117.0,92116.0,7.7e-06]
[1732062920621,0.68648,92117.0,92116.0,7.7e-06]
[1732062922223,0.4822,92117.0,92116.0,7.7e-06]
[1732062923826,0.3608,92117.0,92116.0,7.7e-06]
[1732062924038,0.4822,92117.0,92116.0,7.7e-06]
[1732062929634,0.3608,92117.0,92116.0,7.7e-06]
[1732062929835,0.3608,92117.0,92116.0,0.0322077]
[1732062930139,0.3608,92117.0,92116.0,0.0634077]
[1732062932947,0.1214,92121.0,92120.0,0.054192]
[1732062933243,9.744e-05,92122.0,92120.0,0.054192]
[1732062933445,9.744e-05,92122.0,92121.0,0.0315]
[1732062934449,9.744e-05,92122.0,92121.0,0.35714]
[1732062934639,0.1214,92136.0,92133.0,0.054185]
[1732062934840,0.3608,92134.0,92133.0,0.054185]
[1732062935346,0.00162837,92142.0,92141.0,0.05418]
[1732062935546,0.00012489,92142.0,92141.0,0.05418]
[1732062937137,0.00012489,92142.0,92141.0,0.15983798]
[1732062938547,0.00012489,92142.0,92141.0,0.19073798]
[1732062939347,0.00012489,92142.0,92141.0,0.08508]
[1732062941739,0.00012489,92142.0,92141.0,0.05418]
[1732062941937,0.00012489,92142.0,92132.0,0.3608]
[1732062941938,0.05430489,92142.0,92138.0,0.054181]
[1732062942147,0.0309,92141.0,92138.0,0.054181]
[1732062942545,0.0316,92140.0,92138.0,0.054181]
[1732062943141,0.054183,92137.0,92132.0,0.414985]
[1732062943349,0.054184,92136.0,92134.0,0.054184]
[1732062944256,0.15104,92140.0,92132.0,0.3608]
[1732062944555,0.15104,92140.0,92136.0,0.054183]
[1732062945060,0.054184,92135.0,92130.0,0.054186]
[1732062945241,0.10565798,92137.0,92130.0,0.054186]
[1732062945560,0.054188,92127.0,92125.0,0.0051]
[1732062945742,0.10565798,92126.0,92124.0,0.05419]
[1732062945944,0.11944,92125.0,92124.0,0.05419]
[1732062951760,0.11944,92125.0,92118.0,0.054194]
[1732062951955,0.10565798,92119.0,92118.0,0.054194]
[1732062952453,0.16775798,92119.0,92118.0,0.054194]
[1732062952653,0.16775798,92119.0,92116.0,7.7e-06]
[1732062952861,0.054194,92118.0,92116.0,7.7e-06]
[1732062953270,0.054194,92118.0,92116.0,0.0542017]
[1732062954154,0.16775798,92119.0,92116.0,0.0542017]
[1732062954155,0.16775798,92119.0,92116.0,7.7e-06]
[1732062954355,0.0621,92119.0,92118.0,0.054194]
[1732062954860,0.0316,92130.0,92129.0,0.054187]
[1732062955259,0.15104,92130.0,92129.0,0.054187]
[1732062955854,0.032,92133.0,92129.0,0.414987]
[1732062956054,0.054167,92163.0,92129.0,0.414987]
[1732062956055,0.47695798,92169.0,92132.0,0.054185]
[1732062956251,0.47695798,92169.0,92141.0,0.41498]
[1732062956252,0.0051,92149.0,92141.0,0.41498]
[1732062956470,0.0051,92155.0,92141.0,0.41498]
[1732062958263,0.0051,92155.0,92141.0,0.74058]
[1732062959561,0.0051,92155.0,92141.0,0.41498]
[1732062959756,0.0051,92155.0,92141.0,0.74058]
[1732062959956,0.0051,92155.0,92141.0,0.75981052]
[1732062960862,0.0051,92155.0,92141.0,0.43421052]
[1732062965070,0.0051,92155.0,92141.0,0.8654685]
[1732062965274,0.0051,92161.0,92160.0,0.054169]
[1732062965562,0.0316,92162.0,92160.0,0.054169]
[1732062966167,8.107e-05,92161.0,92160.0,0.054169]
[1732062971069,8.107e-05,92161.0,92160.0,0.379689]
[1732062971279,7e-08,92161.0,92160.0,0.379689]
[1732062971784,0.0051,92174.0,92171.0,0.10565798]
[1732062971968,0.0311,92181.0,92180.0,0.054157]
[1732062972167,0.0314,92183.0,92180.0,0.15981498]
[1732062972485,0.0314,92183.0,92182.0,0.414956]
[1732062972781,0.03152602,92183.0,92182.0,0.414956]
[1732062974664,2e-08,92183.0,92182.0,0.414956]
[1732062975173,0.0311,92192.0,92191.0,0.054151]
[1732062975475,0.0311,92192.0,92191.0,0.414951]
[1732062975679,0.11304,92199.0,92191.0,0.414951]
[1732062975876,0.11304,92199.0,92198.0,0.15980498]
[1732062976077,0.11317845,92199.0,92198.0,0.15980498]
[1732062977470,0.00013845,92199.0,92198.0,0.52060498]
[1732062977679,4.5e-07,92199.0,92198.0,0.52060498]
[1732062979473,4.5e-07,92199.0,92198.0,0.84600498]
[1732062979881,4.5e-07,92199.0,92198.0,0.87930498]
[1732062980786,0.0639,92220.0,92207.0,0.054141]
[1732062981079,0.0639,92220.0,92219.0,0.52059198]
[1732062981672,0.03108033,92220.0,92219.0,0.52059198]
[1732062982078,8.033e-05,92220.0,92219.0,0.52059198]
[1732062982284,3.3e-07,92220.0,92219.0,0.52059198]
[1732062982481,0.0301,92230.0,92229.0,0.054128]
[1732062982688,0.0315,92240.0,92239.0,0.054123]
[1732062982990,0.0315,92240.0,92239.0,0.52058098]
[1732062983578,0.03160803,92240.0,92239.0,0.52058098]
[1732062984573,0.03160803,92240.0,92239.0,0.2931808]
[1732062984769,0.03160803,92240.0,92239.0,0.3473038]
[1732062993489,0.03160803,92240.0,92239.0,0.36895954]
[1732062995695,0.0321,92251.0,92239.0,0.31483654]
[1732062995992,0.0332,92253.0,92250.0,0.46645798]
[1732062996181,0.0332,92253.0,92252.0,0.054115]
[1732062996386,0.11296,92267.0,92258.0,0.054111]
[1732062996696,0.0314,92273.0,92258.0,0.26542696]
[1732062996697,0.0325,92266.0,92258.0,0.26542696]
[1732062996993,0.11296,92288.0,92287.0,0.054094]
[1732062997197,0.14546,92288.0,92287.0,0.054094]
[1732062997883,0.1455663,92288.0,92287.0,0.054094]
[1732062998295,0.0326063,92288.0,92287.0,0.054094]
[1732062998794,0.0652063,92288.0,92287.0,0.054094]
[1732063001495,0.4260063,92288.0,92281.0,0.10565798]
[1732063001886,0.4260063,92288.0,92287.0,0.054094]
[1732063002193,0.56956016,92288.0,92287.0,0.054094]
[1732063002589,0.4260063,92288.0,92287.0,0.054094]
[1732063003395,0.0652063,92288.0,92287.0,0.054094]
[1732063008303,0.4260063,92288.0,92287.0,0.054094]
[1732063009996,0.054096,92285.0,92280.0,0.054098]
[1732063010206,0.054096,92285.0,92272.0,0.10565798]
[1732063010207,0.5381663,92288.0,92281.0,0.054098]
[1732063010385,0.5375263,92288.0,92275.0,0.054101]
[1732063010590,0.10565798,92286.0,92275.0,0.054101]
[1732063010989,0.054099,92280.0,92276.0,0.054101]
[1732063011196,0.0541,92278.0,92276.0,0.054101]
[1732063011390,0.10565798,92286.0,92271.0,0.054104]
[1732063011391,0.054103,92273.0,92271.0,0.054104]
[1732063011696,0.054104,92271.0,92270.0,0.39126]
[1732063011887,0.47232,92272.0,92268.0,0.00162537]
[1732063011888,0.054105,92269.0,92268.0,0.00162537]
[1732063012089,0.054106,92268.0,92265.0,0.054107]
[1732063012291,0.0315,92267.0,92266.0,0.054107]
[1732063012798,0.3923,92267.0,92266.0,0.054107]
[1732063013000,0.3923,92267.0,92254.0,0.02419144]
[1732063013001,0.49795798,92267.0,92255.0,0.054113]
[1732063013191,0.3608,92259.0,92257.0,0.054112]
[1732063013501,0.47232,92259.0,92257.0,0.054112]
[1732063013890,0.47232,92259.0,92251.0,0.054115]
[1732063014097,0.054118,92246.0,92245.0,0.0051]
[1732063014391,0.054121,92241.0,92240.0,0.00162591]
[1732063014592,0.054121,92241.0,92240.0,0.00030829]
[1732063015099,0.054127,92231.0,92227.0,0.0051]
[1732063015285,0.3608,92228.0,92226.0,0.05413]
[1732063015490,0.47232,92227.0,92217.0,0.02176015]
[1732063015701,0.3608,92218.0,92217.0,0.05424976]
[1732063016205,0.3608,92218.0,92217.0,0.00011476]
[1732063016206,0.3928,92218.0,92217.0,0.00011476]
[1732063016501,0.054144,92202.0,92187.0,0.054152]
[1732063016701,0.054144,92202.0,92188.0,0.054152]
[1732063016702,0.054147,92199.0,92188.0,0.054152]
[1732063016999,0.83976,92202.0,92188.0,0.054152]
[1732063017000,0.3608,92191.0,92188.0,0.054152]
[1732063017891,0.3608,92191.0,92185.0,0.02165235]
[1732063018096,0.3608,92191.0,92189.0,0.054151]
[1732063019503,0.1182,92190.0,92189.0,0.054151]
[1732063019912,0.3608,92191.0,92189.0,0.054151]
[1732063020402,0.1182,92197.0,92189.0,0.054151]
[1732063020601,0.3608,92204.0,92203.0,0.054144]
[1732063025811,0.3608,92204.0,92194.0,0.054149]
[1732063026015,0.3608,92195.0,92194.0,0.054149]
[1732063027901,0.3608,92195.0,92187.0,0.39126]
[1732063028199,0.3608,92195.0,92190.0,0.054151]
[1732063028712,0.414949,92195.0,92190.0,0.054151]
[1732063029411,0.3608,92195.0,92187.0,0.3913]
[1732063029620,0.3608,92195.0,92193.0,0.054149]
[1732063032612,0.3608,92195.0,92187.0,0.39126]
[1732063032812,0.3608,92195.0,92184.0,0.00162693]
[1732063032813,0.3608,92195.0,92193.0,0.054149]
[1732063035818,0.3608,92195.0,92193.0,0.07362243]
[1732063036119,0.3608,92195.0,92193.0,0.23019186]
[1732063036423,0.3608,92195.0,92193.0,0.07362243]
[1732063037424,0.3608,92195.0,92193.0,0.054149]
[1732063039112,0.3608,92195.0,92186.0,0.00056]
[1732063039317,0.3608,92195.0,92180.0,0.054157]
[1732063039318,0.054156,92182.0,92180.0,0.054157]
[1732063039607,0.054157,92181.0,92175.0,0.05416]
[1732063039813,0.054157,92181.0,92170.0,0.02165235]
[1732063040220,0.11824,92184.0,92182.0,0.054156]
[1732063040618,0.3608,92185.0,92170.0,0.12697343]
[1732063040819,0.3608,92185.0,92183.0,0.054155]
[1732063042803,0.3608,92187.0,92186.0,0.054154]
[1732063043009,0.3608,92187.0,92186.0,0.15947508]
[1732063043421,0.0001259,92194.0,92186.0,0.15947508]
[1732063043722,0.0001259,92194.0,92193.0,0.15947108]
[1732063044124,0.17698174,92194.0,92193.0,0.15947108]
[1732063044711,0.17698174,92194.0,92193.0,0.05415]
[1732063045616,0.21008174,92194.0,92193.0,0.05415]
[1732063046927,0.20061568,92194.0,92193.0,0.05415]
[1732063047712,0.0001259,92194.0,92193.0,0.05415]
[1732063048223,0.1673765,92194.0,92193.0,0.05415]
[1732063048615,0.1975765,92194.0,92193.0,0.05415]
[1732063048817,0.1673765,92194.0,92193.0,0.05415]
[1732063049011,0.0001259,92194.0,92193.0,0.05415]
[1732063053423,0.0001259,92194.0,92193.0,0.21065325]
[1732063053629,0.0001259,92194.0,92193.0,0.22705971]
[1732063053920,0.0001259,92194.0,92193.0,0.21065325]
[1732063055014,0.0001259,92194.0,92193.0,0.53605325]
[1732063055419,0.22449324,92208.0,92205.0,0.054142]
[1732063055620,0.16673121,92206.0,92205.0,0.054142]
[1732063055924,0.11816,92212.0,92211.0,0.054139]
[1732063056220,0.22612028,92217.0,92215.0,0.054137]
[1732063056221,0.16642347,92216.0,92215.0,0.054137]
[1732063056412,0.22449324,92220.0,92215.0,0.054137]
[1732063056413,0.22959324,92224.0,92215.0,0.22756591]
[1732063056615,5.3e-07,92216.0,92215.0,0.379457]
[1732063056814,0.0051,92236.0,92215.0,0.379457]
[1732063056815,0.0051,92234.0,92233.0,0.054126]
[1732063057028,0.22449324,92244.0,92233.0,0.17342761]
[1732063057322,0.36144,92250.0,92242.0,0.054121]
[1732063057527,0.3608,92250.0,92248.0,0.054117]
[1732063057724,0.00010843,92249.0,92248.0,0.054117]
[1732063059022,0.00010843,92249.0,92244.0,0.0001171]
[1732063059931,0.054119,92246.0,92244.0,0.0001171]
[1732063060224,0.0626,92245.0,92244.0,0.0001171]
[1732063060627,0.031,92245.0,92244.0,0.0001171]
[1732063060826,0.031,92245.0,92244.0,0.0542371]
[1732063062431,0.031,92245.0,92244.0,0.0001171]
[1732063063922,0.14912,92245.0,92244.0,0.0001171]
[1732063064528,0.11812,92245.0,92244.0,0.0001171]
[1732063064935,0.00010843,92249.0,92248.0,0.054117]
[1732063069832,0.00010843,92249.0,92247.0,0.054118]
[1732063075134,0.00010843,92249.0,92247.0,0.15929737]
[1732063080753,0.00010843,92249.0,92248.0,0.3252]
[1732063080932,0.00010843,92249.0,92248.0,0.379317]
[1732063081242,0.00010843,92249.0,92248.0,0.740117]
[1732063081633,0.11608,92271.0,92263.0,0.054108]
[1732063081935,0.0308,92273.0,92268.0,0.054106]
[1732063082143,0.0308,92273.0,92263.0,0.15928737]
[1732063082340,0.0308,92273.0,92268.0,0.054106]
[1732063082533,0.00173261,92269.0,92268.0,0.054106]
[1732063083152,0.00010628,92269.0,92268.0,0.054106]
[1732063083444,0.3608,92282.0,92281.0,0.054098]
[1732063084342,0.36092173,92282.0,92281.0,0.054098]
[1732063087142,0.36092173,92282.0,92281.0,0.15927737]
[1732063087641,0.00012173,92282.0,92281.0,0.15927737]
[1732063090033,0.36092173,92282.0,92281.0,0.15927737]
[1732063090233,0.10064,92300.0,92299.0,0.054087]
[1732063090432,0.10064,92300.0,92299.0,0.15926637]
[1732063090433,0.1,92300.0,92299.0,0.15926637]
[1732063090842,0.1,92300.0,92299.0,0.054087]
[1732063091237,0.10009174,92300.0,92299.0,0.054087]
[1732063092254,0.26395803,92300.0,92299.0,0.054087]
[1732063092435,0.26395803,92300.0,92299.0,0.15926637]
[1732063093042,0.26461019,92300.0,92299.0,0.15926637]
[1732063093854,0.62537966,92300.0,92299.0,0.15926637]
[1732063094543,0.26457966,92300.0,92299.0,0.15926637]
[1732063095044,0.26451065,92300.0,92299.0,0.15926637]
[1732063095241,0.26451065,92300.0,92292.0,0.01882502]
[1732063095437,0.26451065,92300.0,92290.0,0.10517937]
[1732063095438,0.3608,92294.0,92293.0,0.054091]
[1732063096147,0.3608,92294.0,92289.0,0.39126]
[1732063096148,0.52439104,92294.0,92289.0,0.39126]
[1732063096346,0.414892,92291.0,92289.0,0.3907]
[1732063096552,0.414892,92291.0,92281.0,0.0051]
[1732063096553,0.054094,92288.0,92286.0,0.054095]
[1732063096740,0.19489104,92290.0,92280.0,0.00162515]
[1732063096741,0.1941744,92287.0,92280.0,0.00162515]
[1732063097054,0.414898,92281.0,92280.0,0.00162515]
[1732063097237,0.57817343,92281.0,92280.0,0.00162515]
[1732063097939,0.57787467,92281.0,92280.0,0.00162515]
[1732063098450,0.76713666,92281.0,92280.0,0.00162515]
[1732063098838,0.414898,92281.0,92280.0,0.00162515]
[1732063103043,0.3608,92281.0,92280.0,0.00162515]
[1732063105952,0.3608,92281.0,92280.0,0.05572315]
[1732063107249,0.0313,92290.0,92280.0,0.05572315]
[1732063107551,0.3608,92288.0,92287.0,0.054094]
[1732063109645,0.12564,92292.0,92291.0,0.054092]
[1732063109845,0.48644,92292.0,92291.0,0.054092]
[1732063111753,0.48644,92292.0,92285.0,0.054095]
[1732063111754,0.054094,92288.0,92285.0,0.054095]
[1732063111958,0.48712,92292.0,92278.0,0.3913]
[1732063112153,0.48712,92292.0,92278.0,0.4448]
[1732063112154,0.3608,92279.0,92278.0,0.4448]
[1732063112550,0.3608,92279.0,92278.0,0.54997937]
[1732063112946,0.541172,92292.0,92291.0,0.054092]
[1732063113261,0.541172,92292.0,92278.0,0.57162651]
[1732063113262,0.540532,92292.0,92288.0,0.054094]
[1732063113458,0.540532,92292.0,92279.0,0.0051]
[1732063113459,0.540531,92292.0,92279.0,0.054099]
[1732063113663,0.054093,92289.0,92287.0,0.054094]
[1732063113959,0.00072,92292.0,92291.0,0.054092]
[1732063114257,0.3659,92314.0,92291.0,0.054092]
[1732063114258,0.0051,92310.0,92299.0,0.054087]